Cogmind - Beta 16.1 @@@ ROGUE MODE // 2026.03.29 @ 10:32:38 Player: Gatamar Result: Smashed by cave-in Performance ------------- Evolutions (1) 500 Regions Visited (3) 600 Robots Destroyed (57) 285 Value Destroyed (1404) 1404 Prototype IDs (3) 60 Alien Tech Used (0) 0 Bonus (0) 0 TOTAL SCORE: 2849 Bonus ------- None Cogmind --------- Core Integrity 0/400 Matter 284/300 Energy 276/280 System Corruption 20% Temperature Cool (2) Movement Treading (160) Location -9/Storage Parts ------- > --- POWER (1) -------- Heavy Ion Engine > --- PROPULSION (2) --- Light Treads Light Treads > --- UTILITY (4) ------ Improved Heat Sink Large Storage Unit Seismic Detector > --- WEAPON (2) ------- Ion Cannon Hammer > --- INVENTORY (15) --- Cooled Ion Engine Light Treads Light Treads Improved Treads Aluminum Leg Aluminum Leg EM Pulse Gun Ion Cannon Ion Cannon Ion Cannon Grenade Launcher Datajack Mining Laser Peak State ------------ > --- POWER ------------ Light Nuclear Core > --- PROPULSION ------- Improved Treads Improved Treads > --- UTILITY ---------- Improved Heat Sink Large Storage Unit Medium Armor Plating Hacking Suite > --- WEAPON ----------- Ion Cannon Ion Cannon > --- INVENTORY -------- Light Ion Engine Light Treads Light Treads Light Treads Aluminum Leg Aluminum Leg Aluminum Leg Small Storage Unit Targeting Computer EM Pulse Gun Beam Cannon Beam Cannon Grenade Launcher Datajack Mining Laser [Rating: 23] Favorites ----------- Power Light Nuclear Core Engine Improved Ion Engine Power Core Light Nuclear Core Propulsion Light Treads Treads Light Treads Utility Large Storage Unit Device Improved Heat Sink Storage Large Storage Unit Processor Targeting Computer Hackware Hacking Suite Protection Medium Armor Plating Weapon Ion Cannon Energy Cannon Ion Cannon Ballistic Gun Assault Rifle Impact Weapon Hammer Special Melee Weapon Datajack Build | -11 -10 -9 -9 ------- Run | Yrd Mat Mat Sto Slots Evolved 2 | . . 2 . Power . | . . . . Propulsion . | . . . . Utility 2 | . . 2 . Weapon . | . . . . Parts Attached 30 | 6 7 10 7 Power 5 | 1 1 1 2 Engine 4 | 1 . 1 2 Core 1 | . 1 . . Reactor . | . . . . Propulsion 8 | 2 . 3 3 Treads 8 | 2 . 3 3 Leg . | . . . . Wheel . | . . . . Hover . | . . . . Flight . | . . . . Utility 9 | 1 3 3 2 Device 3 | . 2 . 1 Storage 2 | 1 1 . . Processor 1 | . . . 1 Hackware 1 | . . 1 . Protection 2 | . . 2 . Artifact . | . . . . Weapon 8 | 2 3 3 . Energy Gun . | . . . . Energy Cannon 4 | . 2 2 . Ballistic Gun 2 | 2 . . . Ballistic Cannon . | . . . . Launcher . | . . . . Special Weapon . | . . . . Impact Weapon 1 | . . 1 . Slashing Weapon . | . . . . Piercing Weapon . | . . . . Special Melee Weapon 1 | . 1 . . Unidentified Prototypes 1 | . . . 1 Corrupted Parts 2 | . . . 2 System Corruption 17 | . . . 17 Parts Lost 10 | . . 3 7 Power 2 | . . 1 1 Propulsion 3 | . . . 3 Utility 5 | . . 2 3 Weapon . | . . . . Highest Loss Streak 2 | . . 1 2 To Critical Strikes . | . . . . Average Backups 12 | 2 10 13 14 Power 1 | . 1 . 1 Propulsion 4 | 1 2 4 4 Utility 1 | . 2 1 . Weapon 5 | . 4 5 6 Tool/Special . | . . . . Unused Backups 11 | . . 2 9 Power 3 | . . 1 2 Propulsion 3 | . . 1 2 Utility . | . . . . Weapon 5 | . . . 5 Tool/Special . | . . . . Average Slot Usage (%) 95 | . 96 96 94 Engine 7 | . 9 4 10 Core 3 | . 4 6 . Treads 23 | . 28 21 21 Device 12 | . 11 12 13 Storage 11 | . 14 11 11 Processor 1 | . . . 4 Hackware 6 | . . 10 5 Protection 4 | . . 6 5 Energy Cannon 16 | . 23 16 11 Impact Weapon 5 | . . 5 11 Peak Build Rating 23 | 6 12 23 22 Average Rating 16 | 4 8 19 18 On Entrance 9 | . 6 12 21 Avg Prop Armor Cover (%) . | . . . . Naked Turns . | . . . . Heaviest Build 45 | 11 32 45 44 Greatest Support 46 | 40 40 46 46 Greatest Overweight (x) 1 | . . 1 1 Average Overweight (x) . | . . . . Largest Inventory Capacity 15 | 8 15 15 15 Average Capacity 14 | 7 13 15 15 Most Carried 15 | 4 15 15 15 Average Carried 12 | 2 10 13 14 Final Capacity 15 | 8 15 15 15 Final Carried 15 | 4 15 14 13 Class Distribution -------------------- 68% | Mutant 31% | Scavenger-Mutant Dominant Class ---------------- Mutant | -10/Materials Mutant | -9/Materials Mutant | -9/Storage Resources | -11 -10 -9 -9 ----------- Run | Yrd Mat Mat Sto Matter Collected 586 | 181 135 160 110 Remotely . | . . . . Salvage Created 2293 | . 158 1229 906 Parts 118 | . 14 67 37 Haulers Intercepted 1 | . . 1 . Recyclers Shooed 2 | . . 2 . Parts Field Recycled . | . . . . Retrieved Matter . | . . . . Parts Self-Destructed . | . . . . Prevented . | . . . . Parts Restored . | . . . . Kills | -11 -10 -9 -9 ------- Run | Yrd Mat Mat Sto Combat Hostiles Destroyed 36 | . 3 18 15 Melee 10 | . . 4 6 Cannons 20 | . 3 13 4 Classes Destroyed 11 | . 3 7 1 Worker 1 | . . . 1 Builder 5 | . . 4 1 Hauler 1 | . . 1 . Recycler 8 | . . 5 3 Operator 3 | . 1 1 1 Watcher 3 | . 1 1 1 Swarmer 6 | . . 2 4 Grunt 20 | . 3 11 6 Brawler 1 | . . 1 . Duelist 1 | . . 1 . Sentry 8 | . . 3 5 Best Kill Streak 8 | . 2 3 8 Combat Bots Only 7 | . 2 3 7 Max Kills in Single Turn 1 | . 1 1 1 Gunslinging . | . . . . Exploded . | . . . . Melee 1 | . . 1 1 Uniques/NPCs Destroyed . | . . . . Combat | -11 -10 -9 -9 -------- Run | Yrd Mat Mat Sto Hostile Shots Fired 216 | . 17 89 110 Missed 68 | . 7 29 32 Hits 148 | . 10 60 78 Melee 5 | . . 5 . Projectile 143 | . 10 55 78 AOE 1 | . . . 1 Critical Strikes 10 | . 1 2 7 Damage Taken 2487 | . 161 787 1539 Core 463 | . 23 66 374 Absorbed by Shields . | . . . . Core Remaining (%) 95 | 100 90 . . Volleys Fired 92 | . 12 58 22 Largest 2 | . 2 2 1 Hottest 120 | . 120 120 60 Shots Fired 154 | . 24 106 24 Gun . | . . . . Cannon 154 | . 24 106 24 Launcher . | . . . . Special . | . . . . Kinetic . | . . . . Thermal 154 | . 24 106 24 Explosive . | . . . . Electromagnetic . | . . . . Robot Hit Streak 13 | . 5 13 4 Robot Miss Streak 4 | . 3 4 3 Penetration Max . | . . . . Secondary Targets . | . . . . Shots Hit Robots 152 | . 13 89 50 Core Hits 48 | . 7 27 14 Critical Kills 2 | . . 1 1 Critical Parts Destroyed 10 | . . 2 8 Critical Strikes 12 | . . 3 9 Smash 12 | . . 3 9 Melee Attacks 122 | . 1 39 82 Impact 121 | . . 39 82 Slashing . | . . . . Piercing . | . . . . Sneak Attacks 14 | . 1 7 6 Combat Hostiles 1 | . . . 1 Follow-up Attacks . | . . . . Damage Inflicted 3660 | . 211 2118 1331 Guns . | . . . . Cannons 1812 | . 210 1346 256 Explosions . | . . . . Melee 1847 | . . 772 1075 Ramming 1 | . 1 . . Kinetic . | . . . . Thermal 1812 | . 210 1346 256 Explosive . | . . . . Electromagnetic . | . . . . Impact 1847 | . . 772 1075 Slashing . | . . . . Piercing . | . . . . Highest Corruption 20 | . . . 20 Average Corruption 15 | . . . 15 Corruption Purged . | . . . . Corruption Blocked . | . . . . Effects 16 | . . . 16 Message Errors 4 | . . . 4 Matter Fused 5 | . . . 5 Heat Flow Errors 2 | . . . 2 Data Loss (major) 2 | . . . 2 Misfires 2 | . . . 2 Alerts 1 | . . . 1 Overload Shots . | . . . . Overflow Damage 379 | . . 168 211 Projectiles 19 | . . 11 8 Explosions . | . . . . Melee 360 | . . 157 203 Knockbacks 7 | . . 3 4 Impact 7 | . . 3 4 Kinetic . | . . . . Secondary . | . . . . Self-Inflicted Damage . | . . . . Shots . | . . . . Rammed 1 | . 1 . . Targets Rammed 1 | . 1 . . Kicked . | . . . . Crushed . | . . . . Highest Temperature 321 | . 321 150 122 Average Temperature 69 | . 117 51 54 Received Heat Transfer 825 | . 84 258 483 Effects 3 | . 3 . . Interference 3 | . 3 . . Siege Activations . | . . . . Martial Activations . | . . . . Shielding Activations . | . . . . Robots Disrupted . | . . . . Combat Hostiles . | . . . . Robots Corrupted 11 | . . 3 8 Combat Hostiles 6 | . . 1 5 Parts Fried 16 | . . 7 9 Impact Corruptions 20 | . . 7 13 Robots Melted . | . . . . Combat Hostiles . | . . . . Parts Melted 3 | . 1 2 . Heat Transferred 3367 | . 444 2516 407 Parts Sabotaged . | . . . . Parts Stolen . | . . . . Parts Stripped . | . . . . Power Chain Reactions . | . . . . Alert | -11 -10 -9 -9 ------- Run | Yrd Mat Mat Sto Maximum Alert Level . | . . . . Low Security (%) 100 | 100 100 100 100 Level 1 . | . . . . Level 2 . | . . . . Level 3 . | . . . . Level 4 . | . . . . Level 5 . | . . . . High Security . | . . . . Max Security . | . . . . Peak Influence 193 | . 69 111 193 Initial 42 | . . 5 42 Average 50 | . 14 46 91 Influence Increases 1155 | . 121 556 478 Destroy 0b10 Robot/C 720 | . 60 360 300 Destroy 0b10 Robot/NC 105 | . 10 60 35 Destroy Leader 208 | . 22 104 82 Successful Hack 22 | . 13 4 5 Disable Machine 15 | . 15 . . Destroy Structure 25 | . 1 13 11 Lose Combat Pursuer 60 | . . 15 45 Influence Decreases 1070 | . 108 466 496 Entered New Map 69 | . . 8 61 Time Decay 901 | . 108 428 365 Lost Part 100 | . . 30 70 Squads Dispatched 8 | . 1 4 3 Investigation 4 | . . 3 1 Extermination . | . . . . Reinforcement 3 | . 1 1 1 Assault . | . . . . Garrison 1 | . . . 1 Intercept . | . . . . Searches Triggered . | . . . . Construction Impeded . | . . . . Haulers Reinforced . | . . . . Active Scanning Responses . | . . . . Cargo Convoy Interrupts . | . . . . Stealth | -11 -10 -9 -9 --------- Run | Yrd Mat Mat Sto Distress Signals 5 | . . 4 1 Communications Jammed . | . . . . Distress Signals . | . . . . Times Spotted 59 | . 6 33 20 Peak Tracking Total 7 | . 2 6 7 Tactical Retreats 4 | . . 1 3 Traps | -11 -10 -9 -9 ------- Run | Yrd Mat Mat Sto Traps Triggered 3 | . 1 2 . Indirectly . | . . . . Trap Hack Attempts . | . . . . Triggered . | . . . . Disarmed . | . . . . Reprogrammed . | . . . . Reused . | . . . . Traps Extracted . | . . . . Installed . | . . . . Triggered . | . . . . Machines | -11 -10 -9 -9 ---------- Run | Yrd Mat Mat Sto Machines Disabled 1 | . 1 . . Max in Single Turn 1 | . 1 . . Machines Repaired . | . . . . Machines Dismantled . | . . . . Machines Sabotaged . | . . . . Overloaded Fab Kills . | . . . . Hacking | -11 -10 -9 -9 --------- Run | Yrd Mat Mat Sto Machines Accessed 11 | . 4 4 3 Terminals 8 | . 3 3 2 Fabricators . | . . . . Repair Stations . | . . . . Recycling Units 3 | . 1 1 1 Scanalyzers . | . . . . Garrison Access . | . . . . Total Hacks 32 | . 11 13 8 Successful 16 | . 6 5 5 Failed 16 | . 5 8 3 Catastrophic 3 | . 1 2 . Database Lockouts . | . . . . Manual 19 | . 9 7 3 Terminals 20 | . 8 8 4 Fabricators . | . . . . Repair Stations . | . . . . Recycling Units 12 | . 3 5 4 Scanalyzers . | . . . . Garrison Access . | . . . . Terminal Hacks 8 | . 3 3 2 Record 1 | . 1 . . Prototype ID Bank 1 | . 1 . . Branch Access Points 1 | . . 1 . Terminal Index 3 | . 1 1 1 Hauler Manifests 1 | . . 1 . Zone Layout 1 | . . . 1 Fabricator Hacks . | . . . . Repair Station Hacks . | . . . . Recycling Unit Hacks 6 | . 1 2 3 Process 1 | . . 1 . Report Inventory 5 | . 1 1 3 Scanalyzer . | . . . . Garrison Access Hacks . | . . . . Unauthorized Hacks . | . . . . Terminals . | . . . . Fabricators . | . . . . Repair Stations . | . . . . Recycling Units . | . . . . Scanalyzers . | . . . . Garrison Access . | . . . . Data Cores Recovered . | . . . . Used . | . . . . Hacking Detections 9 | . 3 4 2 Full Trace Events 4 | . 1 2 1 Feedback Events . | . . . . Feedback Blocked . | . . . . Robot Schematics Acquired . | . . . . Robots Built . | . . . . Authchips . | . . . . Time . | . . . . Total Robot Build Rating . | . . . . Part Schematics Acquired . | . . . . Parts Built . | . . . . Authchips . | . . . . Time . | . . . . Total Part Build Rating . | . . . . Part Studies Acquired . | . . . . Parts Repaired . | . . . . Time . | . . . . Parts Recycled . | . . . . Recycled Matter 35 | . . 35 . Retrieved Matter . | . . . . Retrieved Components . | . . . . Parts Scanalyzed . | . . . . Part Schematics Acquired . | . . . . Parts Damaged . | . . . . Bothacking | -11 -10 -9 -9 ------------ Run | Yrd Mat Mat Sto Used RIF Installer . | . . . . Robots Hacked . | . . . . Non-combat . | . . . . Combat . | . . . . Robot Hacks Applied . | . . . . Relay Couplers Released . | . . . . Fabnet Peak Effective % . | . . . . Robots Rewired . | . . . . Allies Hacked . | . . . . Hacks Repelled . | . . . . Allies | -11 -10 -9 -9 -------- Run | Yrd Mat Mat Sto Total Allies . | . . . . Largest Group . | . . . . Highest-Rated Group . | . . . . Highest-Rated Ally . | . . . . Total Orders . | . . . . Ally Attacks . | . . . . Total Damage . | . . . . Kills . | . . . . Allies Corrupted . | . . . . Allies Melted . | . . . . Intel | -11 -10 -9 -9 ------- Run | Yrd Mat Mat Sto Active Infowar (turns) 734 | . 324 176 234 Sensors 500 | . 324 176 . Seismic 234 | . . . 234 Robot Analysis Total . | . . . . Derelict Logs Recovered . | . . . . Drone Launches . | . . . . Drone Recoveries . | . . . . Exploration | -11 -10 -9 -9 ------------- Run | Yrd Mat Mat Sto Turns Passed 3060 | 93 697 1379 891 Spaces Moved 1395 | 54 386 631 324 Core 5 | 5 . . . Treads 1390 | 49 386 631 324 Legs . | . . . . Wheels . | . . . . Hover . | . . . . Flight . | . . . . Fastest Speed 50 | 50 160 160 160 Average Speed 161 | 149 160 160 169 Slowest Speed 240 | 160 160 240 240 Overloaded Moves . | . . . . Propulsion Burnouts . | . . . . Robots Hopped . | . . . . Potential Cave-ins 13 | . . . 13 Cave-ins Triggered 2 | . . . 2 Exploration Rate (%) 32 | 4 48 38 40 Regions Visited 3 Branch Regions 1 Pre-discovered Areas . | . . . . Known Exits Taken 1 | . . 1 . Unknown Exits Taken 2 | 1 1 . . Scrap Searched . | . . . . Spaces Dug 26 | . . 8 18 Terrain Destroyed 30 | . . 10 20 Melee 25 | . . 8 17 Projectile 5 | . . 2 3 AOE . | . . . . Terrain Rammed . | . . . . Walls Destroyed . | . . . . Machines Disabled . | . . . . Actions | -11 -10 -9 -9 --------- Run | Yrd Mat Mat Sto Total 1822 | 63 438 822 499 Wait 140 | . 18 66 56 Move 1390 | 53 385 630 322 Hop . | . . . . Pick Up 25 | 4 11 6 4 Fast Attach 17 | 6 1 7 3 Attach 8 | . 2 2 4 Detach 1 | . 1 . . Swap 14 | . 5 6 3 Drop 11 | . 1 8 2 Fire 92 | . 12 58 22 Melee 122 | . 1 39 82 Ram . | . . . . Kick . | . . . . Crush 1 | . 1 . . Escape Stasis 1 | . . . 1 Rewire . | . . . . Trap . | . . . . Miscellaneous . | . . . . Route ------- -11/Scrapyard -10/Materials (discovered 2 exits: *Mat / [*Min]) -9/Materials (discovered 3 exits: Min / *Sto x2) -9/Storage (discovered 1 exit: [Rec]) History --------- Turn | Location | Event 5 | -11/Scrapyard | Discovered new exit (range 14) 94 | -11/Scrapyard | Entered Materials 167 | -10/Materials | Discovered new exit (range 11) 316 | -10/Materials | Build established: Mutant 330 | -10/Materials | Discovered new exit (range 6) 791 | -10/Materials | Entered another Materials area 791 | -9/Materials | Evolved 2 slots: Utility x2 1585 | -9/Materials | Identified exit to Mines 1585 | -9/Materials | Identified exit to Storage 1877 | -9/Materials | Build established: Scavenger-Mutant 2170 | -9/Materials | Entered Storage 2616 | -9/Storage | Core integrity fell below 50% 2664 | -9/Storage | Core integrity fell below 20% 2676 | -9/Storage | Garrison activated, responded to threat 2685 | -9/Storage | System corruption reached 10% 2694 | -9/Storage | Destroyed 7 combat bots 2731 | -9/Storage | Discovered new exit (range 13) 3020 | -9/Storage | Crushed by falling debris 3061 | -9/Storage | Crushed by falling debris 3061 | -9/Storage | Smashed by cave-in Last Messages --------------- 02908_ System corrupted: Matter fused (-6). 02917_ Acquired 16 matter. 02932_ XK/MG/O=GUDSI3XKEGRYN0MY%:5DXNJ XH 02942_ K-01 Serf cleans the Garrison Access. 02965_ K%G<%KQA%4TUTXKM8N 02999_ System corrupted: IFF burst signal emitted. 03020_ The unstable cave ceiling collapses. 03020_ Crushed by falling debris. 03020_ Targeting Computer destroyed. 03020_ System corrupted by crushing effect (+3). 03026_ System corrupted: Matter fused (-6). 03034_ The unstable cave ceiling collapses. 03047_ System corrupted: Matter fused (-10). 03049_ The unstable cave ceiling collapses. 03061_ Crushed by falling debris. Map ----- +----------------------------------------------------+ | #########????????????????????????????????????????? | | # #????????????????????????????????????????? | | # #########????????????????????????????????? | | # ## #T####?????????????????????????????? | | # """ + ! # "!!#?????????????????????????????? | | # """ ##!%[ + !!#?????????????????????????????? | | # """ ##!= # "!!#?????????????????????????????? | | # ### #######?????????????????????????????? | | # """ #?# #???????????????????????????????????? | | # """ #?# #???????????????????????????????????? | | # """ #?# #???????????????????????????????????? | | # ### ##??????????????????????????????????? | | ##+####### #??????????????????????????????????? | | #??????????????????????????????????? | | #??????????????????????????????????? | | ###/###+## #??????????????????????????????????? | | ## ###+###?????????????????????????????????? | | # ### #?????????????????????????????????? | | # ##T #?????????????????????????????????? | | # ###" "#?????????????????????????????????? | | # ###] [#?????????????????????????????????? | | # ###] [#?????????????????????????????????? | | # ###] [#?????????????????????????????????? | | # ###] [#?????????????????????????????????? | | # %%#########??????###??????????????????????? | | #######+#################@###????????????????????? | | ???# # % # # #;;#????????????????????? | | ???### % #############????????????????????? | | ?????# #????????????????????????????????? | | ?????# ########????????????????????????????????? | | ?????# #???????????????????????????????????????? | | ?????# #???????????????????????????????????????? | | ??#### #???????????????????????????????????????? | | ??#""" % #???????????????????????????????????????? | | ??#"G #???????????????????????????????????????? | | ###""" #???????????????????????????????????????? | | #### #???????????????????????????????????????? | | #### #???????????????????????????????????????? | | + #???????????????????????????????????????? | | ###### #???????????????????????????????????????? | | ! #????# #???????????????????????????????????????? | | #????# #???????????????????????????????????????? | | #????# #???????????????????????????????????????? | | #????# #???????????????????????????????????????? | | ######## #???????????????????????????????????????? | | ?????????????????????????????????????? | | ! ?????????????????????????????????????? | | =%* ?????????????????????????????????????? | | ###########??????????????????????????????????????? | | ?????????????????????????????????????????????????? | +----------------------------------------------------+ Best States ------------- Heat Dissipation 42 Energy Generation 14 Energy Capacity 280 Matter Stores 300 Matter Capacity 300 Sight Range 16 Robot Scan Range 14 Terrain Scan Density 10 Armor Coverage 225 Evasion (%) 40 Targeting Accuracy 5 Recoil Reduction 2 Offensive Hacking 10 Item Schematics ----------------- None Robot Schematics ------------------ None Fabricated ------------ Nothing Repaired ---------- Nothing Studied --------- None Alien Tech Used ----------------- None Achievements -------------- None Challenges ------------ None Game ------ Seed PlatingBombBasin Manual? 0 Play Time 00:28:22 Cumulative 27.6 hours Start 2026.03.29 @ 10:01:05 End 2026.03.29 @ 10:32:38 Sessions 1 Manual Loads 0 Difficulty Rogue Special Mode None Game No. 70 Rogue 70 Adventurer 0 Explorer 0 Win Type - Total 0 Types 0/0/0/0/0/0/0/0/0/0 Lore% 26 Gallery% 27 Achievement% 21 Wizard Run 0 Options --------- Layout 1 ASCII 0 Keyboard 0 Movement Numpad Keybinds 0 Fullscreen 1 Font 32/SmallcapsGlow Map View 50x35 Zoom Use 0% Tactical HUD 1 Map Filters NONE Filters NONE Steam 1 RUN: a0f381ba-f461-4dfb-b700-f61e40f45d04